Cogmind - Beta 14 @@@ ROGUE MODE // 2024.08.31 @ 16:42:14 Player: huluvu Result: Destroyed by G-67 Veteran with Plasma Rifle Performance ------------- Evolutions (4) 2000 Regions Visited (10) 2000 Robots Destroyed (53) 265 Value Destroyed (1761) 1761 Prototype IDs (16) 320 Alien Tech Used (0) 0 Bonus (357) 357 TOTAL SCORE: 6703 Bonus ------- Follower Combat Kills 57 Met Data Miner 300 Cogmind --------- Core Integrity 0/850 Matter 300/300 Energy 469/500 System Corruption 4% Temperature Cool (1) Movement Walking (120) Location -5/Proximity Caves Parts ------- > --- POWER (2) -------- (None) > --- PROPULSION (5) --- Enhanced Flexi-carbon Leg > --- UTILITY (5) ------ Compact Battery Compact Battery Advanced Terrain Scan Processor Advanced ECM Suite Recalibrator > --- WEAPON (3) ------- (None) > --- INVENTORY (5) ---- Remote Datajack Peak State ------------ > --- POWER ------------ Reinforced Ion Engine Reinforced Deuterium Engine > --- PROPULSION ------- Light Treads Carbon-fiber Leg Carbon-fiber Leg > --- UTILITY ---------- Advanced Heat Sink Large Storage Unit Advanced Weight Redist. System Improved Light Armor Plating > --- WEAPON ----------- Pulse Rifle Precision Beam Rifle Heavy Assault Rifle > --- INVENTORY -------- Improved Hover Unit Small Storage Unit Improved Terrain Scanner Improved Terrain Scanner Advanced Terrain Scan Processor Seismic Detector Recalibrator Beam Rifle Particle Gun Particle Gun Makeshift Laser Remote Datajack [Rating: 37] Favorites ----------- Power Reinforced Ion Engine Engine Reinforced Ion Engine Power Core Fission Core Propulsion Aluminum Leg Treads Light Treads Leg Aluminum Leg Wheel Wheel Hover Unit Improved Hover Unit Flight Unit VTOL Module Utility Advanced Weight Redist. System Device Advanced Weight Redist. System Storage Large Storage Unit Processor Advanced Terrain Scan Processor Protection Improved Light Armor Plating Weapon Particle Gun Energy Gun Particle Gun Energy Cannon EM Pulse Cannon Ballistic Gun Heavy Machine Gun Launcher Grenade Launcher Special Weapon Remote Datajack Build | -11 -10 -9 -8 -7 -7 -7 -6 -6 -6 -5 ------- Run | Yrd Mat Mat Mat Fac Low Low Fac Low Dat Pro Slots Evolved 8 | . . 2 2 2 . . 2 . . . Power 1 | . . . 1 . . . . . . . Propulsion 3 | . . 2 . . . . 1 . . . Utility 3 | . . . 1 1 . . 1 . . . Weapon 1 | . . . . 1 . . . . . . Parts Attached 102 | 7 6 11 39 2 19 2 2 1 . 13 Power 11 | 1 . 1 7 . 1 . 1 . . . Engine 10 | 1 . 1 7 . 1 . . . . . Core 1 | . . . . . . . 1 . . . Reactor . | . . . . . . . . . . . Propulsion 20 | 2 . 2 11 . 2 . . . . 3 Treads 2 | . . . 2 . . . . . . . Leg 15 | 2 . 2 9 . 1 . . . . 1 Wheel 1 | . . . . . . . . . . 1 Hover 1 | . . . . . 1 . . . . . Flight 1 | . . . . . . . . . . 1 Utility 29 | 1 2 . 10 1 7 2 . 1 . 5 Device 14 | . . . 6 . 3 2 . 1 . 2 Storage 6 | 1 2 . . . 1 . . . . 2 Processor 3 | . . . 1 1 1 . . . . . Hackware . | . . . . . . . . . . . Protection 6 | . . . 3 . 2 . . . . 1 Artifact . | . . . . . . . . . . . Weapon 42 | 3 4 8 11 1 9 . 1 . . 5 Energy Gun 12 | 1 . 1 3 . 6 . . . . 1 Energy Cannon 4 | . . . 1 . . . . . . 3 Ballistic Gun 18 | 2 2 3 6 1 2 . 1 . . 1 Ballistic Cannon . | . . . . . . . . . . . Launcher 6 | . 2 4 . . . . . . . . Special Weapon 2 | . . . 1 . 1 . . . . . Impact Weapon . | . . . . . . . . . . . Slashing Weapon . | . . . . . . . . . . . Piercing Weapon . | . . . . . . . . . . . Special Melee Weapon . | . . . . . . . . . . . Unidentified Prototypes 1 | . . . 1 . . . . . . . Parts Lost 59 | . . 5 21 . 20 . . . . 13 Power 10 | . . 1 5 . 3 . . . . 1 Propulsion 19 | . . 2 9 . 6 . . . . 2 Utility 13 | . . . 5 . 4 . . . . 4 Weapon 17 | . . 2 2 . 7 . . . . 6 Highest Loss Streak 11 | . . 3 7 . 11 . . . . 7 To Critical Strikes 2 | . . . 1 . 1 . . . . . Average Slot Usage (%) 65 | . 94 70 80 92 77 39 44 53 53 37 Engine 6 | . 14 5 14 15 9 . . . . . Core 1 | . . . . . . . 4 6 6 2 Treads 2 | . . . 3 15 4 . . . . . Leg 10 | . 28 21 20 15 10 . . . . . Device 10 | . . . 5 7 10 13 13 20 20 14 Storage 10 | . 22 22 11 7 7 7 6 6 6 6 Processor 3 | . . . . 7 2 7 6 6 6 6 Protection 2 | . . . 6 7 6 1 . . . . Energy Gun 5 | . . . 5 7 14 8 6 6 6 1 Ballistic Gun 8 | . 27 20 10 7 5 . 5 6 6 2 Peak Build Rating 37 | 6 8 9 30 35 37 19 25 26 26 32 Average Rating 21 | 4 6 7 20 31 29 14 22 26 26 19 On Entrance 17 | . 6 8 7 30 31 17 14 25 26 26 Naked Turns . | . . . . . . . . . . . Heaviest Build 57 | 11 31 32 53 52 57 11 24 25 25 31 Greatest Support 55 | 20 20 30 55 49 49 12 3 3 3 28 Greatest Overweight (x) 10 | 1 1 3 9 1 8 2 7 8 8 10 Average Overweight (x) 2 | . . 1 1 1 1 1 5 8 8 2 Largest Inventory Capacity 15 | 8 15 15 15 15 15 8 8 8 8 8 Average Capacity 11 | 6 12 15 15 15 13 8 8 8 8 6 Most Carried 15 | 4 11 13 15 14 13 5 7 6 6 7 Average Carried 7 | 2 5 11 11 13 8 4 5 6 6 4 Final Capacity 15 | 8 15 15 15 15 8 8 8 8 8 5 Final Carried 15 | 2 11 12 15 14 4 5 7 6 6 1 Class Distribution -------------------- 62% | Mutant 19% | Scavenger-Mutant 12% | Scavenger-Tank 4% | Tank Dominant Class ---------------- Mutant | -10/Materials Mutant | -9/Materials Scavenger-Mutant | -8/Materials Scavenger-Mutant | -7/Factory Scavenger-Tank | -7/Lower Caves Mutant | -7/Lower Caves Mutant | -6/Factory Mutant | -6/Lower Caves Mutant | -6/Data Miner Mutant | -5/Proximity Caves Resources | -11 -10 -9 -8 -7 -7 -7 -6 -6 -6 -5 ----------- Run | Yrd Mat Mat Mat Fac Low Low Fac Low Dat Pro Matter Collected 1739 | 169 166 236 719 . 267 . . . . 182 Remotely . | . . . . . . . . . . . Salvage Created 1953 | . 104 292 1069 . 403 . . . . 85 Parts 103 | . 15 23 47 . 11 . . . . 7 Haulers Intercepted 1 | . . . 1 . . . . . . . Recyclers Shooed . | . . . . . . . . . . . Parts Field Recycled . | . . . . . . . . . . . Retrieved Matter . | . . . . . . . . . . . Parts Self-Destructed 26 | . . . . . 12 . . 5 . 9 Prevented 1 | . . . . . . . . . . 1 Kills | -11 -10 -9 -8 -7 -7 -7 -6 -6 -6 -5 ------- Run | Yrd Mat Mat Mat Fac Low Low Fac Low Dat Pro Combat Hostiles Destroyed 41 | . 5 9 17 . 8 . . . . 2 Guns 27 | . 2 3 15 . 7 . . . . . Cannons 4 | . . . 2 . . . . . . 2 AOE 9 | . 3 6 . . . . . . . . Classes Destroyed 12 | . 5 2 5 . . . . . . . Worker 1 | . 1 . . . . . . . . . Builder 3 | . 1 2 . . . . . . . . Hauler 1 | . . . 1 . . . . . . . Recycler 3 | . . 1 2 . . . . . . . Operator 2 | . . 1 1 . . . . . . . Watcher 2 | . 2 . . . . . . . . . Swarmer 8 | . 3 4 . . . . . . . 1 Grunt 21 | . 2 5 8 . 6 . . . . . Brawler 3 | . . . 2 . 1 . . . . . Duelist 2 | . . . 2 . . . . . . . Sentry 4 | . . . 3 . 1 . . . . . Hunter 3 | . . . 2 . . . . . . 1 Best Kill Streak 6 | . 4 6 6 . 3 . . . . 1 Combat Bots Only 5 | . 3 5 5 . 3 . . . . 1 Max Kills in Single Turn 4 | . 3 4 1 . 1 . . . . 1 Gunslinging . | . . . . . . . . . . . Exploded 3 | . 2 3 . . . . . . . . Melee . | . . . . . . . . . . . Uniques/NPCs Destroyed . | . . . . . . . . . . . Combat | -11 -10 -9 -8 -7 -7 -7 -6 -6 -6 -5 -------- Run | Yrd Mat Mat Mat Fac Low Low Fac Low Dat Pro Hostile Shots Fired 697 | . 14 92 219 . 206 . . . . 166 Missed 200 | . 3 29 60 . 55 . . . . 53 Damage Taken 7345 | . 124 693 2782 . 1978 . . . . 1768 Core 1731 | . 15 113 438 . 312 . . . . 853 Absorbed by Shields . | . . . . . . . . . . . Redirected to Shielding 51 | . . . 51 . . . . . . . Core Remaining (%) 68 | 100 94 71 20 . . 55 . . . . Volleys Fired 144 | . 10 30 64 . 32 . . . . 8 Largest 3 | . 2 2 2 . 3 . . . . 3 Hottest 167 | . 50 70 124 . 147 . . . . 167 Shots Fired 271 | . 18 57 113 . 72 . . . . 11 Gun 243 | . 14 51 101 . 72 . . . . 5 Cannon 17 | . . . 11 . . . . . . 6 Launcher 10 | . 4 6 . . . . . . . . Special 1 | . . . 1 . . . . . . . Kinetic 171 | . 14 48 75 . 30 . . . . 4 Thermal 72 | . . 3 26 . 42 . . . . 1 Explosive 10 | . 4 6 . . . . . . . . Electromagnetic 17 | . . . 11 . . . . . . 6 Robot Hit Streak 26 | . 6 9 14 . 26 . . . . 6 Robot Miss Streak 3 | . 1 3 3 . 2 . . . . 2 Penetration Max 1 | . . . 1 . . . . . . . Secondary Targets 4 | . . . 2 . 2 . . . . . Max Gunslinging Chain 1 | . . . 1 . 1 . . . . . Shots Hit Robots 183 | . 10 34 77 . 55 . . . . 7 Core Hits 101 | . 14 23 37 . 19 . . . . 8 Critical Kills 2 | . . . 2 . . . . . . . Critical Parts Destroyed . | . . . . . . . . . . . Critical Strikes 7 | . . . 4 . 2 . . . . 1 Burn 4 | . . . 2 . 2 . . . . . Destroy 2 | . . . 2 . . . . . . . Corrupt 1 | . . . . . . . . . . 1 Melee Attacks . | . . . . . . . . . . . Impact . | . . . . . . . . . . . Slashing . | . . . . . . . . . . . Piercing . | . . . . . . . . . . . Sneak Attacks . | . . . . . . . . . . . Combat Hostiles . | . . . . . . . . . . . Follow-up Attacks . | . . . . . . . . . . . Damage Inflicted 3921 | . 372 870 1665 . 896 . . . . 118 Guns 2785 | . 80 320 1444 . 896 . . . . 45 Cannons 285 | . . . 221 . . . . . . 64 Explosions 842 | . 292 550 . . . . . . . . Melee . | . . . . . . . . . . . Ramming 9 | . . . . . . . . . . 9 Kinetic 1919 | . 80 295 1124 . 389 . . . . 31 Thermal 866 | . . 25 320 . 507 . . . . 14 Explosive 756 | . 292 464 . . . . . . . . Electromagnetic 371 | . . 86 221 . . . . . . 64 Impact . | . . . . . . . . . . . Slashing . | . . . . . . . . . . . Piercing . | . . . . . . . . . . . Highest Corruption 25 | . . . 25 . 3 3 . . . 4 Average Corruption 9 | . . . 24 . 2 3 . . . 3 Corruption Purged . | . . . . . . . . . . . Corruption Blocked . | . . . . . . . . . . . Effects 68 | . . . 40 . 17 2 . . . 9 Message Errors 19 | . . . 11 . 7 1 . . . . Matter Fused 17 | . . . 8 . 3 1 . . . 5 Heat Flow Errors 5 | . . . 2 . 1 . . . . 2 Energy Discharges 5 | . . . 3 . 2 . . . . . Parts Rejected 4 | . . . 2 . 2 . . . . . Parts Fused 1 | . . . . . 1 . . . . . Data Loss (minor) 5 | . . . 4 . . . . . . 1 Data Loss (major) 3 | . . . 2 . . . . . . 1 Misfires 3 | . . . 2 . 1 . . . . . Misdirections 1 | . . . 1 . . . . . . . Weapon Failures 5 | . . . 5 . . . . . . . Overload Shots . | . . . . . . . . . . . Overflow Damage 30 | . . 30 . . . . . . . . Projectiles . | . . . . . . . . . . . Explosions 30 | . . 30 . . . . . . . . Melee . | . . . . . . . . . . . Knockbacks . | . . . . . . . . . . . Impact . | . . . . . . . . . . . Kinetic . | . . . . . . . . . . . Secondary . | . . . . . . . . . . . Self-Inflicted Damage 73 | . 11 59 . . . . . . . 3 Shots 3 | . 1 2 . . . . . . . . Rammed 7 | . . . . . . . . . . 7 Targets Rammed 7 | . . . . . . . . . . 7 Kicked . | . . . . . . . . . . . Crushed . | . . . . . . . . . . . Highest Temperature 379 | . 10 31 240 . 379 . . . . 230 Average Temperature 78 | . 6 10 65 . 128 . . . . 59 Received Heat Transfer 2442 | . 48 264 972 . 930 . . . . 228 Effects 2 | . . . . . 2 . . . . . Shutdowns 1 | . . . . . 1 . . . . . Matter Decay 1 | . . . . . 1 . . . . . Siege Activations . | . . . . . . . . . . . Robots Corrupted . | . . . . . . . . . . . Combat Hostiles . | . . . . . . . . . . . Parts Fried 1 | . . . 1 . . . . . . . Impact Corruptions . | . . . . . . . . . . . Robots Melted 1 | . . . . . 1 . . . . . Combat Hostiles 1 | . . . . . 1 . . . . . Parts Melted 5 | . . . 1 . 4 . . . . . Heat Transferred 2294 | . . 74 888 . 1295 . . . . 37 Parts Sabotaged . | . . . . . . . . . . . Parts Stolen . | . . . . . . . . . . . Parts Stripped . | . . . . . . . . . . . Power Chain Reactions 1 | . . 1 . . . . . . . . Alert | -11 -10 -9 -8 -7 -7 -7 -6 -6 -6 -5 ------- Run | Yrd Mat Mat Mat Fac Low Low Fac Low Dat Pro Peak Influence 277 | . 226 277 251 61 . . 41 . . . Initial 94 | . . 94 82 61 . . 9 . . . Average 112 | . 74 178 139 61 . . 29 . . . Maximum Alert Level 1 | . 1 1 1 . . . . . . . Low Security (%) 84 | 100 94 60 84 100 . . 100 . . . Level 1 15 | . 5 39 15 . . . . . . . Level 2 . | . . . . . . . . . . . Level 3 . | . . . . . . . . . . . Level 4 . | . . . . . . . . . . . Level 5 . | . . . . . . . . . . . High Security . | . . . . . . . . . . . Max Security . | . . . . . . . . . . . Squads Dispatched 10 | . 2 1 6 . . . 1 . . . Investigation 2 | . 1 . 1 . . . . . . . Extermination 1 | . . . . . . . 1 . . . Reinforcement 4 | . 1 1 2 . . . . . . . Assault . | . . . . . . . . . . . Garrison 3 | . . . 3 . . . . . . . Intercept . | . . . . . . . . . . . Searches Triggered . | . . . . . . . . . . . Construction Impeded 1 | . . . 1 . . . . . . . Haulers Reinforced . | . . . . . . . . . . . Active Scanning Responses . | . . . . . . . . . . . Cargo Convoy Interrupts . | . . . . . . . . . . . Stealth | -11 -10 -9 -8 -7 -7 -7 -6 -6 -6 -5 --------- Run | Yrd Mat Mat Mat Fac Low Low Fac Low Dat Pro Distress Signals 3 | . 1 1 1 . . . . . . . Communications Jammed . | . . . . . . . . . . . Distress Signals . | . . . . . . . . . . . Times Spotted 72 | . 7 15 23 . 9 . . . . 18 Peak Tracking Total 7 | . 4 6 5 . 4 . 1 . . 7 Tactical Retreats 6 | . . 1 1 . . . . . . 4 Traps | -11 -10 -9 -8 -7 -7 -7 -6 -6 -6 -5 ------- Run | Yrd Mat Mat Mat Fac Low Low Fac Low Dat Pro Traps Triggered . | . . . . . . . . . . . Indirectly . | . . . . . . . . . . . Trap Hack Attempts . | . . . . . . . . . . . Triggered . | . . . . . . . . . . . Disarmed . | . . . . . . . . . . . Reprogrammed . | . . . . . . . . . . . Reused . | . . . . . . . . . . . Traps Extracted . | . . . . . . . . . . . Installed . | . . . . . . . . . . . Triggered . | . . . . . . . . . . . Machines | -11 -10 -9 -8 -7 -7 -7 -6 -6 -6 -5 ---------- Run | Yrd Mat Mat Mat Fac Low Low Fac Low Dat Pro Machines Disabled 7 | . 1 2 4 . . . . . . . Max in Single Turn 1 | . 1 1 1 . . . . . . . Machines Repaired . | . . . . . . . . . . . Machines Dismantled . | . . . . . . . . . . . Machines Sabotaged . | . . . . . . . . . . . Overloaded Fab Kills . | . . . . . . . . . . . Hacking | -11 -10 -9 -8 -7 -7 -7 -6 -6 -6 -5 --------- Run | Yrd Mat Mat Mat Fac Low Low Fac Low Dat Pro Machines Accessed 13 | . 4 1 1 1 . . 2 . 4 . Terminals 7 | . 4 1 1 . . . 1 . . . Fabricators 1 | . . . . . . . 1 . . . Repair Stations 1 | . . . . 1 . . . . . . Recycling Units . | . . . . . . . . . . . Scanalyzers . | . . . . . . . . . . . Garrison Access . | . . . . . . . . . . . Total Hacks 61 | . 19 4 3 2 . . 5 . 28 . Successful 49 | . 12 2 2 1 . . 4 . 28 . Failed 12 | . 7 2 1 1 . . 1 . . . Catastrophic . | . . . . . . . . . . . Database Lockouts . | . . . . . . . . . . . Manual 5 | . . . . . . . 1 . 4 . Terminals 29 | . 19 4 3 . . . 3 . . . Fabricators 2 | . . . . . . . 2 . . . Repair Stations 2 | . . . . 2 . . . . . . Recycling Units . | . . . . . . . . . . . Scanalyzers . | . . . . . . . . . . . Garrison Access . | . . . . . . . . . . . Terminal Hacks 46 | . 12 2 2 . . . 2 . 28 . Record 20 | . 6 1 2 . . . . . 11 . Part Schematic 10 | . . . . . . . . . 10 . Robot Schematic 4 | . . . . . . . . . 4 . Prototype ID Bank 5 | . 1 . . . . . 1 . 3 . Emergency Access Points 1 | . 1 . . . . . . . . . Alert Level 1 | . 1 . . . . . . . . . Dispatch Records 1 | . 1 . . . . . . . . . Hauler Manifests 1 | . 1 . . . . . . . . . Zone Layout 3 | . 1 1 . . . . 1 . . . Fabricator Hacks 2 | . . . . . . . 2 . . . Network Status 1 | . . . . . . . 1 . . . Build 1 | . . . . . . . 1 . . . Repair Station Hacks 1 | . . . . 1 . . . . . . Scan Component 1 | . . . . 1 . . . . . . Recycling Unit Hacks . | . . . . . . . . . . . Scanalyzer . | . . . . . . . . . . . Garrison Access Hacks . | . . . . . . . . . . . Unauthorized Hacks . | . . . . . . . . . . . Terminals . | . . . . . . . . . . . Fabricators . | . . . . . . . . . . . Repair Stations . | . . . . . . . . . . . Recycling Units . | . . . . . . . . . . . Scanalyzers . | . . . . . . . . . . . Garrison Access . | . . . . . . . . . . . Data Cores Recovered 1 | . . 1 . . . . . . . . Used . | . . . . . . . . . . . Hacking Detections 8 | . 4 1 1 1 . . 1 . . . Full Trace Events 2 | . 1 . 1 . . . . . . . Feedback Events . | . . . . . . . . . . . Feedback Blocked . | . . . . . . . . . . . Robot Schematics Acquired 4 | . . . . . . . . . 4 . Robots Built . | . . . . . . . . . . . Authchips . | . . . . . . . . . . . Time . | . . . . . . . . . . . Total Robot Build Rating . | . . . . . . . . . . . Part Schematics Acquired 10 | . . . . . . . . . 10 . Parts Built 2 | . . . . . . . 2 . . . Authchips . | . . . . . . . . . . . Time 106 | . . . . . . . 106 . . . Total Part Build Rating 12 | . . . . . . . 12 . . . Parts Repaired . | . . . . . . . . . . . Time . | . . . . . . . . . . . Parts Recycled . | . . . . . . . . . . . Recycled Matter . | . . . . . . . . . . . Retrieved Matter . | . . . . . . . . . . . Retrieved Components . | . . . . . . . . . . . Parts Scanalyzed . | . . . . . . . . . . . Part Schematics Acquired . | . . . . . . . . . . . Parts Damaged . | . . . . . . . . . . . Bothacking | -11 -10 -9 -8 -7 -7 -7 -6 -6 -6 -5 ------------ Run | Yrd Mat Mat Mat Fac Low Low Fac Low Dat Pro Used RIF Installer . | . . . . . . . . . . . Robots Hacked 1 | . . . 1 . . . . . . . Non-combat . | . . . . . . . . . . . Combat 1 | . . . 1 . . . . . . . Robot Hacks Applied 1 | . . . 1 . . . . . . . parse_system 1 | . . . 1 . . . . . . . Relay Couplers Released . | . . . . . . . . . . . Fabnet Peak Effective % . | . . . . . . . . . . . Robots Rewired . | . . . . . . . . . . . Allies Hacked . | . . . . . . . . . . . Hacks Repelled . | . . . . . . . . . . . Allies | -11 -10 -9 -8 -7 -7 -7 -6 -6 -6 -5 -------- Run | Yrd Mat Mat Mat Fac Low Low Fac Low Dat Pro Total Allies 1 | . . . . . . . . . . 1 Largest Group 1 | . . . . . . . . . . 1 Highest-Rated Group 96 | . . . . . . . . . . 96 Highest-Rated Ally 96 | . . . . . . . . . . 96 Total Orders . | . . . . . . . . . . . Ally Attacks 18 | . . . . . . . . . . 18 Total Damage 690 | . . . . . . . . . . 690 Kills 3 | . . . . . . . . . . 3 Allies Corrupted . | . . . . . . . . . . . Allies Melted 1 | . . . . . . . . . . 1 Intel | -11 -10 -9 -8 -7 -7 -7 -6 -6 -6 -5 ------- Run | Yrd Mat Mat Mat Fac Low Low Fac Low Dat Pro Robot Analysis Total . | . . . . . . . . . . . Derelict Logs Recovered 3 | . . . . . 2 . . . . 1 Drone Launches . | . . . . . . . . . . . Drone Recoveries . | . . . . . . . . . . . Exploration | -11 -10 -9 -8 -7 -7 -7 -6 -6 -6 -5 ------------- Run | Yrd Mat Mat Mat Fac Low Low Fac Low Dat Pro Turns Passed 4930 | 77 314 463 900 232 1001 73 285 145 509 931 Spaces Moved 2001 | 46 170 187 296 96 403 39 75 33 114 542 Core 811 | 9 . . 4 . 63 39 75 33 114 474 Treads 173 | . . . 68 96 9 . . . . . Legs 959 | 37 170 187 224 . 331 . . . . 10 Wheels 17 | . . . . . . . . . . 17 Hover . | . . . . . . . . . . . Flight 41 | . . . . . . . . . . 41 Fastest Speed 35 | 50 120 120 120 240 190 50 150 450 450 35 Average Speed 211 | 135 159 193 205 240 210 142 326 450 450 162 Slowest Speed 550 | 190 190 330 500 240 450 150 400 450 450 550 Overloaded Moves . | . . . . . . . . . . . Propulsion Burnouts . | . . . . . . . . . . . Robots Hopped . | . . . . . . . . . . . Cave-ins Triggered . | . . . . . . . . . . . Exploration Rate (%) 24 | 3 31 25 27 4 53 13 2 9 75 32 Regions Visited 10 Branch Regions 5 Pre-discovered Areas 2 | . . . . . . . . . 1 1 Known Exits Taken 1 | . . . . . 1 . . . . . Unknown Exits Taken 9 | 1 1 1 1 1 . 1 1 1 1 . Scrap Searched 2 | . . . . . 1 . . . . 1 Spaces Dug . | . . . . . . . . . . . Terrain Destroyed 54 | . 12 37 4 . 1 . . . . . Melee . | . . . . . . . . . . . Projectile 5 | . . . 4 . 1 . . . . . AOE 49 | . 12 37 . . . . . . . . Terrain Rammed . | . . . . . . . . . . . Walls Destroyed . | . . . . . . . . . . . Machines Disabled . | . . . . . . . . . . . Actions | -11 -10 -9 -8 -7 -7 -7 -6 -6 -6 -5 --------- Run | Yrd Mat Mat Mat Fac Low Low Fac Low Dat Pro Total 2459 | 60 195 234 477 99 492 57 118 33 113 581 Wait 101 | . . . 15 . 31 15 38 . . 2 Move 1991 | 45 169 186 295 95 402 38 74 32 113 542 Hop . | . . . . . . . . . . . Pick Up 91 | 8 10 6 48 1 7 . 4 . . 7 Fast Attach . | . . . . . . . . . . . Attach 76 | 6 1 4 30 2 16 1 2 1 . 13 Detach 3 | . . . . . . 2 . . . 1 Swap 26 | 1 5 7 9 . 3 1 . . . . Drop 20 | . . 1 16 1 1 . . . . 1 Fire 144 | . 10 30 64 . 32 . . . . 8 Melee . | . . . . . . . . . . . Ram 7 | . . . . . . . . . . 7 Kick . | . . . . . . . . . . . Crush . | . . . . . . . . . . . Escape Stasis . | . . . . . . . . . . . Rewire . | . . . . . . . . . . . Trap . | . . . . . . . . . . . Miscellaneous . | . . . . . . . . . . . Route ------- -11/Scrapyard -10/Materials -9/Materials -8/Materials -7/Factory -7/Lower Caves -7/Lower Caves -6/Factory -6/Lower Caves -6/Data Miner -5/Proximity Caves History --------- Turn | Location | Event 9 | -11/Scrapyard | Discovered new exit (range 16) 78 | -11/Scrapyard | Entered Materials 316 | -10/Materials | Build established: Mutant 361 | -10/Materials | Discovered new exit (range 9) 392 | -10/Materials | Entered another Materials area 392 | -9/Materials | Evolved 2 slots: Propulsion x2 772 | -9/Materials | Discovered new exit (range 10) 844 | -9/Materials | Lost 3 parts (2n1w) 855 | -9/Materials | Entered another Materials area 855 | -8/Materials | Evolved 2 slots: Power x1, Utility x1 1114 | -8/Materials | Garrison activated, responded to threat 1146 | -8/Materials | System corruption reached 10% 1187 | -8/Materials | Lost 7 parts (2p3n2u) 1278 | -8/Materials | Core integrity fell below 50% 1334 | -8/Materials | Lost 4 parts (1p1n1u1w) 1554 | -8/Materials | Lost 5 parts (1p3n1u) 1667 | -8/Materials | Discovered new exit (range 11) 1755 | -8/Materials | Entered Factory 1755 | -7/Factory | Evolved 2 slots: Utility x1, Weapon x1 1854 | -7/Factory | Build established: Scavenger-Mutant 1876 | -7/Factory | Discovered new exit (range 16) 1987 | -7/Factory | Entered Lower Caves 2046 | -7/Lower Caves | Lost 6 parts (1p1n2u2w) 2305 | -7/Lower Caves | Build established: Scavenger-Tank 2699 | -7/Lower Caves | Lost 11 parts (2p3n1u5w) 2774 | -7/Lower Caves | Attracted the attention of an 0b10 checkpoint 2836 | -7/Lower Caves | Lost 3 parts (2n1u) 2838 | -7/Lower Caves | Learned 4 Factory zone layouts 2856 | -7/Lower Caves | Identified exit to Lower Caves 2988 | -7/Lower Caves | Entered another Lower Caves area 3043 | -7/Lower Caves | Discovered new exit (range 14) 3061 | -7/Lower Caves | Entered Factory 3061 | -6/Factory | Evolved 2 slots: Propulsion x1, Utility x1 3170 | -6/Factory | Discovered new exit (range 12) 3244 | -6/Factory | Fabricated Disruptor Cannon (x2) 3287 | -6/Factory | Build established: Mutant 3346 | -6/Factory | Entered Lower Caves 3434 | -6/Lower Caves | A Derelict revealed a hidden shortcut to meet someone special 3491 | -6/Lower Caves | Entered Data Miner 3491 | -6/Data Miner | Discovered new exit (range 6) 3577 | -6/Data Miner | Met Data Miner 3703 | -6/Data Miner | Received God Mode back door access code from Data Miner 3748 | -6/Data Miner | Learned location of Section 7 (-2) 3748 | -6/Data Miner | Acquired the access code to Warlord's prototype stash 4000 | -6/Data Miner | Entered Proximity Caves 4508 | -5/Proximity Caves | Lost 7 parts (1p3u3w) 4525 | -5/Proximity Caves | Core integrity fell below 50% 4576 | -5/Proximity Caves | Escorted by Enhanced Grunt 4577 | -5/Proximity Caves | Core integrity fell below 20% 4637 | -5/Proximity Caves | Lost 3 parts (1n1u1w) 4931 | -5/Proximity Caves | Destroyed by G-67 Veteran with Plasma Rifle Last Messages --------------- 04606_ VTOL Module destroyed. 04612_ Acquired 15 matter. 04614_ Acquired Com. Battery. 04640_ System corrupted: Component data lost. 04641_ Acquired 2 matter. 04657_ System corrupted: Matter fused (-10). 04685_ System corrupted: Matter fused (-6). 04710_ System corrupted: Matter fused (-10). 04745_ System corrupted: Matter fused (-7). 04784_ System corrupted: Heat flow error (+181). 04826_ System corrupted: Heat flow error (+267). 04860_ Acquired 24 matter. 04873_ Acquired 17 matter. 04874_ System corrupted: Matter fused (-9). 04874_ Acquired 9 matter. 04875_ Acquired Com. Battery. 04913_ Acquired 4 matter. 04916_ Acquired 6 matter. 04918_ Acquired Enh. Flexi-carbon Leg. 04920_ Acquired 10 matter. Map ----- +----------------------------------------------------+ | ################ ???????????? | | ################# ## ?????????????? | | ######### ###??????????????? | | ###### #### ####??#?????????????? | | #### #### ####? ####?###?????????????? | | ##### ####### ###### ######?#?????????????? | | ##### ###### #######?#?#?#???????????????? | | ##### ### #######?##??????????????????? | | ##### ### #####??##?##????????????????? | | ##### ## ##########?????????????????? | | ##### ########## ###### #?#???????????????? | | ##### ########## ###????????????????? | | #### ######### ##?#????????????????? | | ## #### #???????????????????? | | ##### ###### #### % ##??????????????????? | | ###### ##### # #### #???????????????????? | | ###### ####### #### ##??????????????????? | | #### ###### ### ##?????????????????? | | #### ###### ## #?????????????????? | | ##### # ##?????????????????? | | ### # %% ##?????#????????????? | | ## # ## !%% #???? #????????????? | | ## #% ### %% # ;#??? #????????????? | | ## ## ### ;;#### ## ????? | | # #### % %% % g ????? | | # ##### % @ % ????? | | ##?# #### ; ;;;# #?????? | | # ##?# ######;# # ##### #??????? | | # ##### #???#######????? ##??????? | | # ##?# ??????????????????????? ##???????? | | ##?## ? ? ????????????????????##????????? | | ###### ? ?#????????????????????????????? | | # ##?#?#?? ???? ?????????????????????????????? | | ####?#??##?? ? ? ????????????????????????????????? | | ?#?###?##?#? # ??????????????????????????????????? | | ????####?#???????????????????????????????????????? | | ??????#???????#??????????????????????????????????? | | ??#?????? ???????????????????????????????????????? | | ??????"??????????????????????????????????????????? | | ?????????????????????????????????????????????????? | | ?????????????????????????????????????????????????? | | ?????????????????????????????????????????????????? | | ?????????????????????????????????????????????????? | | ?????????????????????????????????????????????????? | | ?????????????????????????????????????????????????? | | ?????????????????????????????????????????????????? | | ?????????????????????????????????????????????????? | | ?????????????????????????????????????????????????? | | ?????????????????????????????????????????????????? | | ?????????????????????????????????????????????????? | +----------------------------------------------------+ Best States ------------- Heat Dissipation 53 Energy Generation 23 Energy Capacity 500 Matter Stores 300 Matter Capacity 450 Sight Range 18 Terrain Scan Range 16 Terrain Scan Density 210 ECM Strength 2 Additional Mass Support 9 Armor Coverage 225 Propulsion Shielding 33 Evasion (%) 63 Targeting Accuracy 8 Recoil Reduction 2 Matter Filtering 30 Item Schematics ----------------- Combat Drone Bay | -6/Data Miner | Free Lgt. Regenerative Plating | -6/Data Miner | Free Enh. Flexi-carbon Leg | -6/Data Miner | Free Hvy. Proton Cannon | -6/Data Miner | Free Imp. Energy Well | -6/Data Miner | Free Adv. Medium Treads | -6/Data Miner | Free Graphene Brace | -6/Data Miner | Free Force Lance | -6/Data Miner | Free Nova Cannon | -6/Data Miner | Free Mic. Fission Core | -6/Data Miner | Free Robot Schematics ------------------ Y-64 Sentinel | -6/Data Miner | Free E-15 Imp | -6/Data Miner | Free L-41 Fighter | -6/Data Miner | Free A-15 Conveyor | -6/Data Miner | Free Fabricated ------------ Disruptor Cannon | x2 | -6/Factory | Preloaded Alien Tech Used ----------------- None Achievements -------------- Omniscient Cartographer The Oracle Challenges ------------ None Game ------ Seed WeldingMicrowarpDiverter Manual? 0 Play Time 00:43:18 Cumulative 9.4 hours Start 2024.08.31 @ 15:59:00 End 2024.08.31 @ 16:42:14 Sessions 1 Manual Loads 0 Difficulty Rogue Special Mode None Game No. 13 Rogue 13 Adventurer 0 Explorer 0 Win Type - Total 0 Types 0/0/0/0/0/0/0/0/0 Lore% 9 Gallery% 22 Achievement% 17 Wizard Run 0 Options --------- Layout 0 ASCII 0 Keyboard 0 Movement Mouse Keybinds 0 Fullscreen 1 Font 24/Smallcaps Map View 76x50 Zoom Use 0% Tactical HUD 1 Map Filters NONE Filters NONE Steam 1 RUN: 5394bd72-52df-42da-bf8c-4fa0e3e15057